[Event "*** Titled Tuesday Blitz"]
[Site "Chess.com"]
[Date "2021.02.02"]
[Round "5"]
[White "Jumbo"]
[Black "TregubovP"]
[Result "1/2-1/2"]
[WhiteElo "2812"]
[BlackElo "2591"]
[TimeControl "180+1"]
[EndTime "10:58:19 PST"]
[Termination "Game drawn by repetition"]

1. e3 {[%clk 0:03:00.9]} 1... d5 {[%clk 0:02:56.1]} 2. Nf3 {[%clk 0:02:59.1]}
2... Nf6 {[%clk 0:02:56.4]} 3. c4 {[%clk 0:02:58.6]} 3... e6 {[%clk 0:02:53.5]}
4. b3 {[%clk 0:02:58.5]} 4... b6 {[%clk 0:02:53.1]} 5. Bb2 {[%clk 0:02:58.4]}
5... Be7 {[%clk 0:02:53.7]} 6. Nc3 {[%clk 0:02:55.5]} 6... Bb7 {[%clk 0:02:54]}
7. h4 {[%clk 0:02:53]} 7... c5 {[%clk 0:02:50.5]} 8. cxd5 {[%clk 0:02:49.3]}
8... exd5 {[%clk 0:02:49.7]} 9. d4 {[%clk 0:02:48.9]} 9... Nc6 {[%clk
0:02:44.1]} 10. Bb5 {[%clk 0:02:41.4]} 10... O-O {[%clk 0:02:42.7]} 11. Rc1
{[%clk 0:02:36.3]} 11... cxd4 {[%clk 0:02:35.6]} 12. exd4 {[%clk 0:02:24.2]}
12... Ne4 {[%clk 0:02:24.4]} 13. Bxc6 {[%clk 0:01:43]} 13... Bxc6 {[%clk
0:02:23.6]} 14. Nxe4 {[%clk 0:01:42.6]} 14... dxe4 {[%clk 0:02:23.8]} 15. Rxc6
{[%clk 0:01:42.9]} 15... exf3 {[%clk 0:02:23.9]} 16. Qxf3 {[%clk 0:01:43.8]}
16... Bb4+ {[%clk 0:02:13.5]} 17. Kf1 {[%clk 0:01:43.9]} 17... Rc8 {[%clk
0:02:07.5]} 18. g3 {[%clk 0:01:38.1]} 18... Rxc6 {[%clk 0:01:58.4]} 19. Qxc6
{[%clk 0:01:39]} 19... Re8 {[%clk 0:01:56.2]} 20. Qc4 {[%clk 0:01:20.6]} 20...
Qe7 {[%clk 0:01:39.5]} 21. Qd3 {[%clk 0:00:24.8]} 21... h5 {[%clk 0:01:20.2]}
22. Kg2 {[%clk 0:00:19.8]} 22... Qe2 {[%clk 0:01:19]} 23. Qxe2 {[%clk
0:00:20.2]} 23... Rxe2 {[%clk 0:01:18.8]} 24. Rb1 {[%clk 0:00:20.7]} 24... Kf8
{[%clk 0:01:12.3]} 25. a4 {[%clk 0:00:15.2]} 25... Ke7 {[%clk 0:01:10.4]} 26.
Kf3 {[%clk 0:00:15.1]} 26... Rc2 {[%clk 0:01:09.5]} 27. Bc1 {[%clk 0:00:14.7]}
27... Ke6 {[%clk 0:01:07.4]} 28. Be3 {[%clk 0:00:13.2]} 28... Kd5 {[%clk
0:01:04.1]} 29. Kf4 {[%clk 0:00:13.1]} 29... Be7 {[%clk 0:00:59.4]} 30. Rc1
{[%clk 0:00:10.6]} 30... Rxc1 {[%clk 0:00:58.7]} 31. Bxc1 {[%clk 0:00:11.5]}
31... g6 {[%clk 0:00:53.7]} 32. Ke3 {[%clk 0:00:11.2]} 32... Bf6 {[%clk
0:00:52.7]} 33. Bb2 {[%clk 0:00:11.3]} 33... a6 {[%clk 0:00:52.6]} 34. Kd3
{[%clk 0:00:10.5]} 34... b5 {[%clk 0:00:52.8]} 35. axb5 {[%clk 0:00:10]} 35...
axb5 {[%clk 0:00:53]} 36. Bc3 {[%clk 0:00:10]} 36... Bg7 {[%clk 0:00:53]} 37.
Bb2 {[%clk 0:00:09.7]} 37... Bf6 {[%clk 0:00:53.3]} 38. Ke3 {[%clk 0:00:07.2]}
38... Bg7 {[%clk 0:00:51.7]} 39. Kd3 {[%clk 0:00:05.6]} 39... Bf6 {[%clk
0:00:51.5]} 1/2-1/2

[Event "*** Titled Tuesday Blitz"]
[Site "Chess.com"]
[Date "2021.02.02"]
[Round "5"]
[White "Djager97"]
[Black "Reader777"]
[Result "0-1"]
[WhiteElo "2573"]
[BlackElo "2794"]
[TimeControl "180+1"]
[EndTime "10:58:19 PST"]
[Termination "Reader777 won by resignation"]

1. e4 {[%clk 0:03:00.9]} 1... c5 {[%clk 0:02:58.6]} 2. Nf3 {[%clk 0:03:01.3]}
2... d6 {[%clk 0:02:58.8]} 3. d4 {[%clk 0:03:01.9]} 3... cxd4 {[%clk 0:02:59.3]}
4. Nxd4 {[%clk 0:03:02.8]} 4... Nf6 {[%clk 0:02:59.1]} 5. Nc3 {[%clk 0:03:03.4]}
5... a6 {[%clk 0:02:59.6]} 6. h3 {[%clk 0:03:04]} 6... e6 {[%clk 0:02:59.3]} 7.
g4 {[%clk 0:03:04.1]} 7... Be7 {[%clk 0:02:59.6]} 8. g5 {[%clk 0:03:03.7]} 8...
Nfd7 {[%clk 0:02:59.9]} 9. Be3 {[%clk 0:03:03.3]} 9... b5 {[%clk 0:02:58.9]} 10.
a3 {[%clk 0:03:02.7]} 10... Bb7 {[%clk 0:02:58.8]} 11. Qd2 {[%clk 0:02:58.9]}
11... Nc6 {[%clk 0:02:57.6]} 12. h4 {[%clk 0:02:55.2]} 12... Rc8 {[%clk
0:02:54.6]} 13. O-O-O {[%clk 0:02:52.3]} 13... Nxd4 {[%clk 0:02:46.7]} 14. Qxd4
{[%clk 0:02:39.1]} 14... O-O {[%clk 0:02:45.5]} 15. Kb1 {[%clk 0:02:28.3]} 15...
Ne5 {[%clk 0:02:37.4]} 16. Be2 {[%clk 0:02:19]} 16... Nc4 {[%clk 0:02:33.9]} 17.
Bc1 {[%clk 0:02:10.7]} 17... Qa5 {[%clk 0:02:14.6]} 18. Rh3 {[%clk 0:01:59.3]}
18... Qb6 {[%clk 0:01:23]} 19. Qxb6 {[%clk 0:01:28.2]} 19... Nxb6 {[%clk
0:01:23.9]} 20. h5 {[%clk 0:01:15]} 20... d5 {[%clk 0:01:22.4]} 21. e5 {[%clk
0:01:05.4]} 21... Nc4 {[%clk 0:01:15.4]} 22. Bd3 {[%clk 0:00:52.2]} 22... Nxe5
{[%clk 0:01:13.2]} 23. f4 {[%clk 0:00:50]} 23... Nxd3 {[%clk 0:01:12.5]} 24.
Rhxd3 {[%clk 0:00:50.9]} 24... Rc4 {[%clk 0:01:04.3]} 25. f5 {[%clk 0:00:50.6]}
25... Rfc8 {[%clk 0:00:58.7]} 26. fxe6 {[%clk 0:00:45.8]} 26... fxe6 {[%clk
0:00:58.5]} 27. Re1 {[%clk 0:00:39.3]} 27... d4 {[%clk 0:00:58.6]} 28. Rxe6
{[%clk 0:00:39.3]} 28... Kf7 {[%clk 0:00:53.5]} 29. Rb6 {[%clk 0:00:39.1]} 29...
Ba8 {[%clk 0:00:43.8]} 30. g6+ {[%clk 0:00:31.4]} 30... hxg6 {[%clk 0:00:42.6]}
31. hxg6+ {[%clk 0:00:32.3]} 31... Ke8 {[%clk 0:00:39.1]} 32. Ne2 {[%clk
0:00:25.4]} 32... Rxc2 {[%clk 0:00:38.1]} 33. Bd2 {[%clk 0:00:26]} 33... Be4
{[%clk 0:00:37.4]} 0-1

[Event "*** Titled Tuesday Blitz"]
[Site "Chess.com"]
[Date "2021.02.02"]
[Round "5"]
[White "DanilNajdin"]
[Black "carlocapau"]
[Result "1-0"]
[WhiteElo "2461"]
[BlackElo "2309"]
[TimeControl "180+1"]
[EndTime "10:58:20 PST"]
[Termination "DanilNajdin won by resignation"]

1. e4 {[%clk 0:03:00.9]} 1... c5 {[%clk 0:02:58.8]} 2. Nf3 {[%clk 0:03:00.5]}
2... d6 {[%clk 0:02:58.3]} 3. d4 {[%clk 0:03:00.8]} 3... cxd4 {[%clk 0:02:58.5]}
4. Qxd4 {[%clk 0:03:01.7]} 4... a6 {[%clk 0:02:54.8]} 5. c4 {[%clk 0:02:59.7]}
5... Nc6 {[%clk 0:02:53.6]} 6. Qd2 {[%clk 0:02:56.6]} 6... g6 {[%clk 0:02:52.7]}
7. Nc3 {[%clk 0:02:55.9]} 7... Bg7 {[%clk 0:02:52.1]} 8. b3 {[%clk 0:02:56.2]}
8... Nf6 {[%clk 0:02:48.7]} 9. Bb2 {[%clk 0:02:55.9]} 9... O-O {[%clk
0:02:49.1]} 10. Be2 {[%clk 0:02:44.4]} 10... Rb8 {[%clk 0:02:45.3]} 11. a4
{[%clk 0:02:41]} 11... Nd7 {[%clk 0:02:34]} 12. O-O {[%clk 0:02:11.8]} 12... Nc5
{[%clk 0:02:31.4]} 13. Bd1 {[%clk 0:02:11.7]} 13... Bg4 {[%clk 0:02:12.4]} 14.
Ra3 {[%clk 0:01:38.3]} 14... Qa5 {[%clk 0:01:56]} 15. h3 {[%clk 0:01:30.3]}
15... Nxe4 {[%clk 0:01:33.1]} 16. Nxe4 {[%clk 0:01:19.7]} 16... Qxd2 {[%clk
0:01:32.5]} 17. Nfxd2 {[%clk 0:01:17.5]} 17... Bxb2 {[%clk 0:01:30.3]} 18. Ra2
{[%clk 0:01:17.9]} 18... Bxd1 {[%clk 0:01:16.3]} 19. Rxb2 {[%clk 0:01:17.8]}
19... Be2 {[%clk 0:01:14]} 20. Re1 {[%clk 0:01:17.7]} 20... Bd3 {[%clk
0:01:11.1]} 21. Nc3 {[%clk 0:01:16.3]} 21... e6 {[%clk 0:01:07.2]} 22. Re3
{[%clk 0:01:14.6]} 22... Nb4 {[%clk 0:00:53.8]} 23. Na2 {[%clk 0:01:10.9]} 23...
Nxa2 {[%clk 0:00:45.6]} 24. Rxa2 {[%clk 0:01:11.8]} 24... Bf5 {[%clk 0:00:36.8]}
25. g4 {[%clk 0:01:11.5]} 25... b5 {[%clk 0:00:34.6]} 26. gxf5 {[%clk
0:01:11.2]} 26... gxf5 {[%clk 0:00:35.5]} 27. cxb5 {[%clk 0:01:11.4]} 27... axb5
{[%clk 0:00:33.6]} 28. a5 {[%clk 0:01:11.7]} 28... b4 {[%clk 0:00:34]} 29. a6
{[%clk 0:01:09]} 29... d5 {[%clk 0:00:33.6]} 30. Nf3 {[%clk 0:01:07.4]} 30...
Rfc8 {[%clk 0:00:31.8]} 31. Nd4 {[%clk 0:01:00.5]} 31... Kg7 {[%clk 0:00:24.9]}
32. Re1 {[%clk 0:00:53.7]} 32... Kf6 {[%clk 0:00:20.5]} 33. a7 {[%clk
0:00:52.2]} 33... Ra8 {[%clk 0:00:19.9]} 34. Rea1 {[%clk 0:00:52.2]} 34... e5
{[%clk 0:00:19.3]} 35. Rc2 {[%clk 0:00:47.8]} 35... Rxc2 {[%clk 0:00:12.6]} 36.
Nxc2 {[%clk 0:00:48.7]} 36... d4 {[%clk 0:00:12]} 37. Nxb4 {[%clk 0:00:48.7]}
37... e4 {[%clk 0:00:12.3]} 38. Nd5+ {[%clk 0:00:48.2]} 1-0

[Event "*** Titled Tuesday Blitz"]
[Site "Chess.com"]
[Date "2021.02.02"]
[Round "5"]
[White "tigra"]
[Black "KaterinaMiroshnik"]
[Result "1-0"]
[WhiteElo "2866"]
[BlackElo "2608"]
[TimeControl "180+1"]
[EndTime "10:58:21 PST"]
[Termination "tigra won by resignation"]

1. d4 {[%clk 0:02:53.8]} 1... d5 {[%clk 0:02:58.4]} 2. Nf3 {[%clk 0:02:45.3]}
2... Nf6 {[%clk 0:02:59.3]} 3. Bf4 {[%clk 0:02:38.6]} 3... e6 {[%clk 0:02:58.8]}
4. e3 {[%clk 0:02:37.4]} 4... Bd6 {[%clk 0:02:58.6]} 5. Nbd2 {[%clk 0:02:34]}
5... O-O {[%clk 0:02:58.3]} 6. Bd3 {[%clk 0:02:32.4]} 6... b6 {[%clk 0:02:57.3]}
7. Ne5 {[%clk 0:02:30.2]} 7... Bb7 {[%clk 0:02:56.8]} 8. Qf3 {[%clk 0:02:25]}
8... c5 {[%clk 0:02:48.7]} 9. c3 {[%clk 0:02:20.3]} 9... Nc6 {[%clk 0:02:44]}
10. Qh3 {[%clk 0:02:16.6]} 10... Ne7 {[%clk 0:02:31.9]} 11. f3 {[%clk
0:01:59.5]} 11... cxd4 {[%clk 0:02:25.1]} 12. exd4 {[%clk 0:01:58.7]} 12... g6
{[%clk 0:02:03.5]} 13. Bh6 {[%clk 0:01:47.6]} 13... Re8 {[%clk 0:01:53.8]} 14.
Bg5 {[%clk 0:01:43.6]} 14... Nf5 {[%clk 0:01:36.1]} 15. g4 {[%clk 0:01:42.6]}
15... Ng7 {[%clk 0:01:30.5]} 16. Bb5 {[%clk 0:01:36.4]} 16... Rf8 {[%clk
0:01:24]} 17. Nd7 {[%clk 0:01:34.2]} 17... Be7 {[%clk 0:01:14.1]} 18. Qh4 {[%clk
0:01:31.8]} 18... Nge8 {[%clk 0:01:10.3]} 19. Nxf8 {[%clk 0:01:27.9]} 19... Kxf8
{[%clk 0:01:05.3]} 20. Bxe8 {[%clk 0:01:24.9]} 20... Kxe8 {[%clk 0:01:05.5]} 21.
O-O-O {[%clk 0:01:19.5]} 21... b5 {[%clk 0:00:59]} 22. Kb1 {[%clk 0:01:18.2]}
22... a5 {[%clk 0:00:57.1]} 23. Rhe1 {[%clk 0:01:14.4]} 23... b4 {[%clk
0:00:56.3]} 24. Rc1 {[%clk 0:01:08.8]} 24... Ba6 {[%clk 0:00:51.7]} 25. c4
{[%clk 0:01:05.5]} 25... dxc4 {[%clk 0:00:47.4]} 26. Nxc4 {[%clk 0:01:06.4]}
26... Bxc4 {[%clk 0:00:21.1]} 27. Rxc4 {[%clk 0:01:05.2]} 27... a4 {[%clk
0:00:19.6]} 28. Rec1 {[%clk 0:00:55.5]} 28... a3 {[%clk 0:00:17.9]} 29. b3
{[%clk 0:00:54.8]} 29... Rb8 {[%clk 0:00:14.5]} 30. Bxf6 {[%clk 0:00:53.2]}
30... Bxf6 {[%clk 0:00:14.1]} 31. Qxh7 {[%clk 0:00:50.2]} 31... Kf8 {[%clk
0:00:10.5]} 32. Qh6+ {[%clk 0:00:40.1]} 32... Kg8 {[%clk 0:00:10.6]} 33. Qf4
{[%clk 0:00:39.3]} 33... Bg7 {[%clk 0:00:09.3]} 34. Qxb8 {[%clk 0:00:38.4]} 1-0

[Event "*** Titled Tuesday Blitz"]
[Site "Chess.com"]
[Date "2021.02.02"]
[Round "5"]
[White "Legendinunknown"]
[Black "Fandorine"]
[Result "0-1"]
[WhiteElo "2587"]
[BlackElo "2825"]
[TimeControl "180+1"]
[EndTime "10:58:22 PST"]
[Termination "Fandorine won by checkmate"]

1. d4 {[%clk 0:02:49.8]} 1... Nf6 {[%clk 0:02:59.8]} 2. c4 {[%clk 0:02:48.6]}
2... g6 {[%clk 0:02:58.8]} 3. Nc3 {[%clk 0:02:48.2]} 3... Bg7 {[%clk 0:02:56.9]}
4. e4 {[%clk 0:02:47.8]} 4... d6 {[%clk 0:02:57.2]} 5. Nf3 {[%clk 0:02:45.8]}
5... O-O {[%clk 0:02:57.4]} 6. Be2 {[%clk 0:02:46.3]} 6... e5 {[%clk 0:02:57.6]}
7. d5 {[%clk 0:02:45.7]} 7... Na6 {[%clk 0:02:51]} 8. Nd2 {[%clk 0:02:42.8]}
8... Bh6 {[%clk 0:02:46.8]} 9. Nb3 {[%clk 0:02:40.6]} 9... Bxc1 {[%clk
0:02:45.9]} 10. Qxc1 {[%clk 0:02:41.5]} 10... Kg7 {[%clk 0:02:43.4]} 11. h4
{[%clk 0:02:38.1]} 11... h5 {[%clk 0:02:39.1]} 12. f3 {[%clk 0:02:35.4]} 12...
c6 {[%clk 0:02:34.1]} 13. Qe3 {[%clk 0:02:32.1]} 13... cxd5 {[%clk 0:02:30.6]}
14. cxd5 {[%clk 0:02:31.5]} 14... Bd7 {[%clk 0:02:30.8]} 15. O-O-O {[%clk
0:02:28.4]} 15... Rc8 {[%clk 0:01:49.1]} 16. Kb1 {[%clk 0:02:26.8]} 16... Nc5
{[%clk 0:01:49.2]} 17. Nxc5 {[%clk 0:02:24.9]} 17... Rxc5 {[%clk 0:01:49.1]} 18.
g4 {[%clk 0:02:16.3]} 18... hxg4 {[%clk 0:01:48]} 19. h5 {[%clk 0:02:15.5]}
19... Nxh5 {[%clk 0:01:44.7]} 20. Rxh5 {[%clk 0:01:49.3]} 20... gxh5 {[%clk
0:01:45.6]} 21. fxg4 {[%clk 0:01:49.5]} 21... hxg4 {[%clk 0:01:32.5]} 22. Rg1
{[%clk 0:01:39.9]} 22... Qh4 {[%clk 0:01:32.1]} 23. Bxg4 {[%clk 0:01:32.9]}
23... Bxg4 {[%clk 0:01:31.5]} 24. Qf3 {[%clk 0:01:31.9]} 24... Qe1+ {[%clk
0:01:25.3]} 25. Qd1 {[%clk 0:01:18]} 25... Qxd1+ {[%clk 0:01:22.9]} 26. Nxd1
{[%clk 0:01:18.9]} 26... f5 {[%clk 0:01:10.3]} 27. exf5 {[%clk 0:01:18.8]} 27...
Rxf5 {[%clk 0:01:08.4]} 28. Rxg4+ {[%clk 0:01:17.6]} 28... Kf6 {[%clk
0:01:08.5]} 29. Ne3 {[%clk 0:01:17.8]} 29... Rg5 {[%clk 0:01:08.5]} 30. b4
{[%clk 0:01:14.8]} 30... Rc3 {[%clk 0:01:01.8]} 31. Re4 {[%clk 0:01:11]} 31...
Rd3 {[%clk 0:00:56.4]} 32. Kc2 {[%clk 0:00:48.9]} 32... Rd4 {[%clk 0:00:54.7]}
33. Rxd4 {[%clk 0:00:48.9]} 33... exd4 {[%clk 0:00:55.6]} 34. Nc4 {[%clk
0:00:49.5]} 34... Rxd5 {[%clk 0:00:51.5]} 35. Kd3 {[%clk 0:00:50.1]} 35... Ke6
{[%clk 0:00:52]} 36. Na5 {[%clk 0:00:47.6]} 36... Rxa5 {[%clk 0:00:43.8]} 37.
bxa5 {[%clk 0:00:46.9]} 37... Kd5 {[%clk 0:00:37]} 38. a3 {[%clk 0:00:43.5]}
38... a6 {[%clk 0:00:36.3]} 39. a4 {[%clk 0:00:43.6]} 39... Kc5 {[%clk
0:00:36.6]} 40. Ke4 {[%clk 0:00:43.9]} 40... Kc4 {[%clk 0:00:37]} 41. Kf5 {[%clk
0:00:42.8]} 41... d3 {[%clk 0:00:37.4]} 42. Ke6 {[%clk 0:00:43.7]} 42... d2
{[%clk 0:00:37.9]} 43. Kd7 {[%clk 0:00:44.6]} 43... d1=Q {[%clk 0:00:37.9]} 44.
Kc7 {[%clk 0:00:45.5]} 44... Qxa4 {[%clk 0:00:38.1]} 45. Kxb7 {[%clk 0:00:46.4]}
45... Qxa5 {[%clk 0:00:37.4]} 46. Kc6 {[%clk 0:00:46.7]} 46... d5 {[%clk
0:00:38]} 47. Kb7 {[%clk 0:00:46.2]} 47... d4 {[%clk 0:00:38.4]} 48. Ka8 {[%clk
0:00:47.1]} 48... d3 {[%clk 0:00:39.2]} 49. Ka7 {[%clk 0:00:48]} 49... d2 {[%clk
0:00:38.8]} 50. Ka8 {[%clk 0:00:48.9]} 50... d1=Q {[%clk 0:00:39.7]} 51. Ka7
{[%clk 0:00:49.8]} 51... Qd7+ {[%clk 0:00:39.5]} 52. Kb8 {[%clk 0:00:49.7]}
52... Qad8# {[%clk 0:00:39.8]} 0-1

[Event "*** Titled Tuesday Blitz"]
[Site "Chess.com"]
[Date "2021.02.02"]
[Round "5"]
[White "annacramling"]
[Black "SharapovEvgeny"]
[Result "1/2-1/2"]
[WhiteElo "2114"]
[BlackElo "2463"]
[TimeControl "180+1"]
[EndTime "10:58:24 PST"]
[Termination "Game drawn by agreement"]

1. d4 {[%clk 0:03:00.9]} 1... d5 {[%clk 0:02:58.8]} 2. c4 {[%clk 0:03:01.1]}
2... c6 {[%clk 0:02:58.4]} 3. Nf3 {[%clk 0:03:00.1]} 3... Nf6 {[%clk 0:02:57.8]}
4. Nc3 {[%clk 0:02:59.1]} 4... g6 {[%clk 0:02:57.6]} 5. Bf4 {[%clk 0:02:52.8]}
5... Bg7 {[%clk 0:02:57]} 6. e3 {[%clk 0:02:52.9]} 6... O-O {[%clk 0:02:56.7]}
7. h3 {[%clk 0:02:47.9]} 7... Bf5 {[%clk 0:02:55]} 8. Be2 {[%clk 0:02:44.9]}
8... Ne4 {[%clk 0:02:53.8]} 9. O-O {[%clk 0:02:42.7]} 9... Nxc3 {[%clk 0:02:52]}
10. bxc3 {[%clk 0:02:42.7]} 10... dxc4 {[%clk 0:02:42.6]} 11. Bxc4 {[%clk
0:02:43.6]} 11... Be4 {[%clk 0:02:40.7]} 12. Nd2 {[%clk 0:02:37.7]} 12... Bd5
{[%clk 0:02:40]} 13. Be2 {[%clk 0:02:25.8]} 13... Nd7 {[%clk 0:02:38.9]} 14. c4
{[%clk 0:02:21.3]} 14... Be6 {[%clk 0:02:31.1]} 15. Rb1 {[%clk 0:02:07.8]} 15...
b5 {[%clk 0:02:16.4]} 16. cxb5 {[%clk 0:01:58.1]} 16... cxb5 {[%clk 0:02:15.9]}
17. Bf3 {[%clk 0:01:36.8]} 17... Bxa2 {[%clk 0:02:08.2]} 18. Rxb5 {[%clk
0:00:57]} 18... Rc8 {[%clk 0:02:01.7]} 19. Rb2 {[%clk 0:00:56.8]} 19... Bc4
{[%clk 0:01:57.1]} 20. Nxc4 {[%clk 0:00:55.7]} 20... Rxc4 {[%clk 0:01:56.6]} 21.
Qb3 {[%clk 0:00:43]} 21... Nb6 {[%clk 0:01:49.6]} 22. Ra1 {[%clk 0:00:40]} 22...
e5 {[%clk 0:01:18.4]} 23. Bxe5 {[%clk 0:00:35.3]} 23... Bxe5 {[%clk 0:01:17.5]}
24. dxe5 {[%clk 0:00:35.7]} 24... Qe7 {[%clk 0:01:16.4]} 25. Qa2 {[%clk
0:00:24.8]} 25... Ra4 {[%clk 0:01:10.7]} 26. Qb1 {[%clk 0:00:23.9]} 26... Rxa1
{[%clk 0:01:09.9]} 27. Qxa1 {[%clk 0:00:24.3]} 27... Qxe5 {[%clk 0:01:09.2]} 28.
Ra2 {[%clk 0:00:24.9]} 28... Qxa1+ {[%clk 0:01:00.9]} 29. Rxa1 {[%clk
0:00:25.8]} 29... Nc8 {[%clk 0:00:56.4]} 30. Bb7 {[%clk 0:00:24.5]} 30... Nd6
{[%clk 0:00:44.3]} 31. Rxa7 {[%clk 0:00:24.7]} 31... Nxb7 {[%clk 0:00:41.3]} 32.
Rxb7 {[%clk 0:00:24.8]} 32... h5 {[%clk 0:00:41.2]} 33. h4 {[%clk 0:00:23.7]}
33... Ra8 {[%clk 0:00:39.4]} 34. g3 {[%clk 0:00:23.7]} 34... Ra2 {[%clk
0:00:36.4]} 35. Kg2 {[%clk 0:00:23.9]} 35... Kg7 {[%clk 0:00:36.3]} 36. Kf3
{[%clk 0:00:23.9]} 36... Kf6 {[%clk 0:00:35.5]} 37. Rb6+ {[%clk 0:00:20.6]}
37... Kg7 {[%clk 0:00:35.2]} 38. e4 {[%clk 0:00:19.6]} 38... Rc2 {[%clk
0:00:33]} 1/2-1/2

[Event "*** Titled Tuesday Blitz"]
[Site "Chess.com"]
[Date "2021.02.02"]
[Round "5"]
[White "krasavetc"]
[Black "sokidze"]
[Result "0-1"]
[WhiteElo "2348"]
[BlackElo "2514"]
[TimeControl "180+1"]
[EndTime "10:58:29 PST"]
[Termination "sokidze won by resignation"]

1. e4 {[%clk 0:03:00.5]} 1... c5 {[%clk 0:03:00.3]} 2. Nf3 {[%clk 0:02:57.7]}
2... Nc6 {[%clk 0:03:00.5]} 3. Nc3 {[%clk 0:02:57.8]} 3... g6 {[%clk 0:03:00.2]}
4. d4 {[%clk 0:02:57.6]} 4... cxd4 {[%clk 0:03:00.5]} 5. Nxd4 {[%clk 0:02:57.9]}
5... Bg7 {[%clk 0:03:00.8]} 6. Be3 {[%clk 0:02:53.7]} 6... Nf6 {[%clk
0:03:00.7]} 7. Be2 {[%clk 0:02:51]} 7... O-O {[%clk 0:02:59.2]} 8. O-O {[%clk
0:02:48.5]} 8... d5 {[%clk 0:02:45]} 9. Nxc6 {[%clk 0:02:16.4]} 9... bxc6 {[%clk
0:02:44.4]} 10. e5 {[%clk 0:02:17.3]} 10... Ne8 {[%clk 0:02:44.1]} 11. f4 {[%clk
0:02:16.6]} 11... f6 {[%clk 0:02:44.4]} 12. Bf3 {[%clk 0:01:59.7]} 12... Rb8
{[%clk 0:01:48.8]} 13. Na4 {[%clk 0:01:46.3]} 13... fxe5 {[%clk 0:01:40.3]} 14.
fxe5 {[%clk 0:01:44.3]} 14... Bxe5 {[%clk 0:01:38]} 15. Bxa7 {[%clk 0:01:39.4]}
15... Ra8 {[%clk 0:01:37.1]} 16. Bb6 {[%clk 0:01:39.2]} 16... Qd6 {[%clk
0:01:35.1]} 17. Nc3 {[%clk 0:01:32.4]} 17... Bxh2+ {[%clk 0:01:31]} 18. Kh1
{[%clk 0:01:29.4]} 18... Nf6 {[%clk 0:01:31]} 19. Qd4 {[%clk 0:01:18]} 19... Be5
{[%clk 0:01:26.3]} 20. Qh4 {[%clk 0:01:15.5]} 20... Rb8 {[%clk 0:01:19.8]} 21.
Be3 {[%clk 0:01:04.5]} 21... Rxb2 {[%clk 0:01:16.7]} 22. Ne2 {[%clk 0:00:58]}
22... Rb4 {[%clk 0:01:09.8]} 23. Qh6 {[%clk 0:00:51.6]} 23... Bxa1 {[%clk
0:01:07.8]} 24. Rxa1 {[%clk 0:00:49.2]} 24... Bg4 {[%clk 0:01:06]} 25. Rf1
{[%clk 0:00:42.5]} 25... Bxf3 {[%clk 0:01:01]} 26. Rxf3 {[%clk 0:00:40.8]} 26...
e5 {[%clk 0:00:55.9]} 27. Bg5 {[%clk 0:00:36.2]} 27... Ng4 {[%clk 0:00:45.8]}
28. Qh3 {[%clk 0:00:27.6]} 28... Rxf3 {[%clk 0:00:38]} 29. Qxf3 {[%clk
0:00:28.5]} 29... Qf8 {[%clk 0:00:37.8]} 30. Qg3 {[%clk 0:00:22.3]} 30... Rb1+
{[%clk 0:00:37.6]} 31. Ng1 {[%clk 0:00:21.4]} 31... Qf2 {[%clk 0:00:32]} 32.
Qxf2 {[%clk 0:00:09]} 32... Nxf2+ {[%clk 0:00:32.9]} 33. Kh2 {[%clk 0:00:09.9]}
33... Ng4+ {[%clk 0:00:33.3]} 34. Kh1 {[%clk 0:00:07.9]} 34... e4 {[%clk
0:00:33]} 0-1

[Event "*** Titled Tuesday Blitz"]
[Site "Chess.com"]
[Date "2021.02.02"]
[Round "5"]
[White "adriangschnitzer"]
[Black "nrvisakh"]
[Result "0-1"]
[WhiteElo "2505"]
[BlackElo "2741"]
[TimeControl "180+1"]
[EndTime "10:58:30 PST"]
[Termination "nrvisakh won by resignation"]

1. e4 {[%clk 0:02:59.9]} 1... c5 {[%clk 0:02:50.5]} 2. a3 {[%clk 0:02:58.3]}
2... g6 {[%clk 0:02:39.8]} 3. h4 {[%clk 0:02:57]} 3... h5 {[%clk 0:02:38.4]} 4.
Nc3 {[%clk 0:02:53.2]} 4... Bg7 {[%clk 0:02:38.1]} 5. Bc4 {[%clk 0:02:52.5]}
5... Nc6 {[%clk 0:02:36.5]} 6. d3 {[%clk 0:02:51.1]} 6... e6 {[%clk 0:02:33.7]}
7. Bg5 {[%clk 0:02:50.7]} 7... Nge7 {[%clk 0:02:32.1]} 8. Nf3 {[%clk 0:02:50.9]}
8... O-O {[%clk 0:02:22]} 9. Qd2 {[%clk 0:02:50.4]} 9... Nd4 {[%clk 0:02:08.6]}
10. Nxd4 {[%clk 0:02:47.3]} 10... cxd4 {[%clk 0:02:08.2]} 11. Ne2 {[%clk
0:02:46.2]} 11... d5 {[%clk 0:02:07.8]} 12. exd5 {[%clk 0:02:46.2]} 12... exd5
{[%clk 0:02:07.3]} 13. Bxd5 {[%clk 0:02:32]} 13... Qxd5 {[%clk 0:02:05.5]} 14.
Bxe7 {[%clk 0:02:31.2]} 14... Re8 {[%clk 0:02:05.2]} 15. Bg5 {[%clk 0:02:30.7]}
15... Qxg2 {[%clk 0:02:04.1]} 16. O-O-O {[%clk 0:02:28.3]} 16... Qxf2 {[%clk
0:02:03.7]} 17. Rde1 {[%clk 0:02:18.2]} 17... Bg4 {[%clk 0:02:01.5]} 18. Rhf1
{[%clk 0:02:14.4]} 18... Qg2 {[%clk 0:02:00.3]} 19. Rg1 {[%clk 0:02:01]} 19...
Qd5 {[%clk 0:01:59.9]} 20. Nf4 {[%clk 0:01:48.9]} 20... Qa2 {[%clk 0:01:57.5]}
21. Qb4 {[%clk 0:01:47.6]} 21... f6 {[%clk 0:01:44.6]} 22. Nxg6 {[%clk
0:01:24.3]} 22... fxg5 {[%clk 0:01:40.5]} 23. Ne7+ {[%clk 0:01:14.2]} 23... Rxe7
{[%clk 0:01:37.6]} 24. Qxe7 {[%clk 0:00:55.4]} 24... Rf8 {[%clk 0:01:17.1]} 25.
Rg2 {[%clk 0:00:43.6]} 25... Qa1+ {[%clk 0:01:07.8]} 26. Kd2 {[%clk 0:00:43]}
26... Qxb2 {[%clk 0:01:08.7]} 27. hxg5 {[%clk 0:00:40.1]} 27... Qc3+ {[%clk
0:01:06.6]} 28. Kc1 {[%clk 0:00:40.1]} 28... b5 {[%clk 0:00:26.4]} 29. Rxg4
{[%clk 0:00:34.6]} 29... Qa1+ {[%clk 0:00:25.7]} 30. Kd2 {[%clk 0:00:34.4]}
30... Rf2+ {[%clk 0:00:25.5]} 31. Re2 {[%clk 0:00:30.7]} 31... Qc3+ {[%clk
0:00:25.3]} 32. Kd1 {[%clk 0:00:29.6]} 32... Rf1+ {[%clk 0:00:25.4]} 33. Re1
{[%clk 0:00:29.3]} 33... Rxe1+ {[%clk 0:00:25.4]} 34. Qxe1 {[%clk 0:00:29.6]}
34... Qxe1+ {[%clk 0:00:25.9]} 35. Kxe1 {[%clk 0:00:30.5]} 35... hxg4 {[%clk
0:00:26.3]} 36. Kf2 {[%clk 0:00:30.7]} 36... Be5 {[%clk 0:00:26.4]} 0-1